{"text_format":"3","workbook":"xlsx","n_sheets":4,"sheets":["Ostunimekiri","Eelarve ülevaade","Tehaolevate tööde loend","Loendi ühiskasutus"],"not_rendered":{"charts":2,"images":2,"defined_names":12},"read":"whole","date_system":"1900"}

{"sheet":"Ostunimekiri","index":0,"n_rows":25,"n_cols":8,"rows_kept":25,"merged":[[2,1,2,7],[3,1,3,2],[4,4,6,7]]}
[null,"Tagasi kooli","Plaanur"]
[]
[null,"Jälgige oma ostude edenemist eelarve ülevaatesse sisestatud eelarvekategooriate kogustega võrreldes"]
[null,"Eelarve kokkuvõte",null,null,{"$f":"\"Ostmise edenemine (\"&COUNTIFS(Kontroll_loend[Ostetud], \">0\")&\" / \"&COUNTIFS(Kontroll_loend[Vaja osta], \">0\")&\")\"","v":"Ostmise edenemine (1 / 6)"}]
[null,"Eelarve",{"v":1500,"d":"1,500.00 €"},null,{"$f":"IFERROR(COUNTIFS(Kontroll_loend[Vaja osta],\">0\",Kontroll_loend[Ostetud],\">0\")/SummaKaupVajaOsta,0)","v":{"v":0.16666666666666666,"d":"17%"}}]
[null,"Ostunimekirja kogusumma",{"$f":"IFERROR(SUM(Kontroll_loendiKogusumma), \"\")","v":{"v":365,"d":"365.00 €"}}]
[null,"Lõppsaldo",{"$f":"IFERROR(C5-C6, \"\")","v":{"v":1135,"d":"1,135.00 €"}}]
[null,"Ostunimekiri"]
[null,"Üksus","Kategooria","Kogus","Vaja osta","Hind","Ostetud","Kogumaksumus"]
[null,"Matemaatika","Õpikud",1,1,{"v":55,"d":"55.00 €"},1,{"$f":"IFERROR(Kontroll_loend[Kogus]*Kontroll_loend[Hind], \"\")","v":{"v":55,"d":"55.00 €"}}]
[null,"Inglise keel","Õpikud",1,1,null,null,{"$f":"IFERROR(Kontroll_loend[Kogus]*Kontroll_loend[Hind], \"\")","v":0}]
[null,"Seljakott","Koolitarbed",1,null,{"v":30,"d":"30.00 €"},null,{"$f":"IFERROR(Kontroll_loend[Kogus]*Kontroll_loend[Hind], \"\")","v":{"v":30,"d":"30.00 €"}}]
[null,"Kalkulaator","Koolitarbed",1,{"$nulls":3},{"$f":"IFERROR(Kontroll_loend[Kogus]*Kontroll_loend[Hind], \"\")","v":0}]
[null,"Markerid","Koolitarbed",3,{"$nulls":3},{"$f":"IFERROR(Kontroll_loend[Kogus]*Kontroll_loend[Hind], \"\")","v":0}]
[null,"Koolivorm","Riided",2,1,{"v":100,"d":"100.00 €"},null,{"$f":"IFERROR(Kontroll_loend[Kogus]*Kontroll_loend[Hind], \"\")","v":{"v":200,"d":"200.00 €"}}]
[null,"Särk, nööpidega","Riided",4,{"$nulls":3},{"$f":"IFERROR(Kontroll_loend[Kogus]*Kontroll_loend[Hind], \"\")","v":0}]
[null,"Särk, T-särgid","Riided",5,{"$nulls":3},{"$f":"IFERROR(Kontroll_loend[Kogus]*Kontroll_loend[Hind], \"\")","v":0}]
[null,"Lühikesed püksid","Riided",2,{"$nulls":3},{"$f":"IFERROR(Kontroll_loend[Kogus]*Kontroll_loend[Hind], \"\")","v":0}]
[null,"Tossud","Riided",2,1,null,null,{"$f":"IFERROR(Kontroll_loend[Kogus]*Kontroll_loend[Hind], \"\")","v":0}]
[null,"Sokid","Riided",10,{"$nulls":3},{"$f":"IFERROR(Kontroll_loend[Kogus]*Kontroll_loend[Hind], \"\")","v":0}]
[null,"Kevadjope","Riided",1,1,{"v":80,"d":"80.00 €"},null,{"$f":"IFERROR(Kontroll_loend[Kogus]*Kontroll_loend[Hind], \"\")","v":{"v":80,"d":"80.00 €"}}]
[null,"Kampsunid","Riided",1,{"$nulls":3},{"$f":"IFERROR(Kontroll_loend[Kogus]*Kontroll_loend[Hind], \"\")","v":0}]
[null,"Dressipluusid","Riided",1,{"$nulls":3},{"$f":"IFERROR(Kontroll_loend[Kogus]*Kontroll_loend[Hind], \"\")","v":0}]
[null,"Aluspesu","Riided",10,{"$nulls":3},{"$f":"IFERROR(Kontroll_loend[Kogus]*Kontroll_loend[Hind], \"\")","v":0}]
[null,"Talvejope","Riided",1,1,null,null,{"$f":"IFERROR(Kontroll_loend[Kogus]*Kontroll_loend[Hind], \"\")","v":0}]

{"sheet":"Eelarve ülevaade","index":1,"n_rows":6,"n_cols":3,"rows_kept":6}
[null,"Eelarve ülevaade"]
[null,"Lisage kategooriad ja eelarvesummad, mida jälgida ostunimekirjaga võrreldes."]
[null,"Kategooria","Kogumaksumus"]
[null,"Riided",{"$f":"IFERROR(SUMIFS(Kontroll_loend[Kogumaksumus],Kontroll_loend[Kategooria],Kategooria[Kategooria]), \"\")","v":{"v":280,"d":"280.00 €"}}]
[null,"Koolitarbed",{"$f":"IFERROR(SUMIFS(Kontroll_loend[Kogumaksumus],Kontroll_loend[Kategooria],Kategooria[Kategooria]), \"\")","v":{"v":30,"d":"30.00 €"}}]
[null,"Õpikud",{"$f":"IFERROR(SUMIFS(Kontroll_loend[Kogumaksumus],Kontroll_loend[Kategooria],Kategooria[Kategooria]), \"\")","v":{"v":55,"d":"55.00 €"}}]

{"sheet":"Tehaolevate tööde loend","index":2,"n_rows":22,"n_cols":3,"rows_kept":22}
[null,"Tehaolevate tööde loend"]
[null,"Jälgige kõiki tegevusi, millega peate kooli alguseks valmis saama."]
[null,"Valmis","Ülesanne"]
[null,"x","Täita registreerimisvormid"]
[null,null,"Vajaduse korral leppida kokku tervise- ja nägemiskontroll"]
[null,null,"Veenduda, et nõutavad vaktsineerimised oleksid tehtud"]
[null,null,"Hankida nõutavate ravimite annustamisjuhistega arstitõend"]
[null,null,"Vaadata üle kooli riietumiseeskiri"]
[null,null,"Hankida koolitarvete loend"]
[null,null,"Kohtuda õpetajaga"]
[null,null,"Selgitada välja eelistatav õpetajaga ühenduse võtmise viis (telefon, meil, kiri)"]
[null,null,"Teha lapsega koolis ringkäik"]
[null,null,"Aidata lapsel pähe õppida koduse telefoni number, töötelefoni number ja kodune aadress"]
[null,null,"Korraldada transport, määrata turvaline kohtumispaik ja harjutada uut rutiini"]
[null,null,"Kõndimise korral kõndida lapsega läbi tee kooli ja koolist tagasi (mitu korda)"]
[null,null,"Autojagamise korral tutvustada lapsele kõikide autode juhte"]
[null,null,"Bussiga sõitmise korral teha kindlaks kellaajad ja bussipeatused"]
[null,null,"Korraldada lapsehoid, hoid pärast kooli"]
[null,null,"Kavandada hommikusöögi, vahepalade, kaasa võetava lõuna ja pärast kooli söömiseks mõeldud vahepalade menüü"]
[null,null,"Määrata koduste tööde tegemise koht ja ajakava"]
[null,null,"Kujundada välja magamamineku rutiin vähemalt kaks nädalat enne kooli algust"]
[null,null,"Valmistada ette kõigi koolisündmuste ja -tegevuste kalender"]

{"sheet":"Loendi ühiskasutus","index":3,"n_rows":4,"n_cols":5,"rows_kept":4}
[null,"Loendi ühiskasutus",null,null,"Saate selle loendi teistega koos töötamiseks ühiskasutusse anda. Valige paremas ülaservas „Ühiskasutus“ või vajutage klahve ALT ja YU. Salvestage fail OneDrive’i ja saatke oma sõpradele link."]
[null,"Nimi","Meiliaadress","Ühiskasutusse antud?"]
[null,"Isik 1","keegi@email.com","Jah"]
[null,"Isik 2","keegi@email.com","Ei"]